Workbook

Sheet sheet1
A1: 雷山县事业单位2025年公开招聘工作人员综合成绩排名及入围体检名单
A2: 序号 | B2: 姓名 | C2: 招聘单位 | D2: 招聘岗位类型及岗位代码 | E2: 笔试总分 | F2: 笔试环节成绩=(职业能力倾向测验+综合应用能力)÷3 | G2: 面试成绩 | H2: 笔试折算分数（50%） | I2: 面试折算分数（50%） | J2: 综合成绩 | K2: 综合成绩排名 | L2: 是否入围体检 | M2: 备注
A3: 1 | B3: 谢艳娇 | C3: 雷山县网络安全和信息化服务中心 | D3: 22614061101 | E3: 206.50 | F3: 68.83 | G3: 83.20 | H3: =ROUND(F3*50%,2) -> 34.42 | I3: =IFERROR(ROUND(G3*50%,2),0) -> 41.60 | J3: =H3+I3 -> 76.02 | K3: 1 | L3: 是
A4: 2 | B4: 王倚裕 | C4: 雷山县网络安全和信息化服务中心 | D4: 22614061101 | E4: 200.00 | F4: 66.67 | G4: 83.20 | H4: 33.34 | I4: 41.60 | J4: 74.94 | K4: 2
A5: 3 | B5: 杨鑫鑫 | C5: 雷山县网络安全和信息化服务中心 | D5: 22614061101 | E5: 201.00 | F5: 67.00 | G5: 76.40 | H5: 33.50 | I5: 38.20 | J5: 71.70 | K5: 3
A6: 4 | B6: 潘媛媛 | C6: 雷山县第一中学 | D6: 22614061201 | E6: 162.50 | F6: 54.17 | G6: 78.60 | H6: 27.09 | I6: 39.30 | J6: 66.39 | K6: 1 | L6: 是
A7: 5 | B7: 李镕 | C7: 雷山县第一中学 | D7: 22614061201 | E7: 145.00 | F7: 48.33 | G7: 83.20 | H7: 24.17 | I7: 41.60 | J7: 65.77 | K7: 2
A8: 6 | B8: 王宪熠 | C8: 雷山县第一中学 | D8: 22614061201 | E8: 146.50 | F8: 48.83 | G8: 78.40 | H8: 24.42 | I8: 39.20 | J8: 63.62 | K8: 3
A9: 7 | B9: 龙凯丽 | C9: 雷山县第二中学 | D9: 22614061301 | E9: 169.00 | F9: 56.33 | G9: 86.56 | H9: 28.17 | I9: 43.28 | J9: 71.45 | K9: 1 | L9: 是
A10: 8 | B10: 金碧叶 | C10: 雷山县第二中学 | D10: 22614061301 | E10: 166.50 | F10: 55.50 | G10: 85.74 | H10: 27.75 | I10: 42.87 | J10: 70.62 | K10: 2
A11: 9 | B11: 成元红 | C11: 雷山县第二中学 | D11: 22614061301 | E11: 165.50 | F11: 55.17 | G11: 81.66 | H11: 27.59 | I11: 40.83 | J11: 68.42 | K11: 3
A12: 10 | B12: 黄梦雪 | C12: 雷山县第二中学 | D12: 22614061301 | E12: 165.50 | F12: 55.17 | G12: 81.56 | H12: 27.59 | I12: 40.78 | J12: 68.37 | K12: 4
A13: 11 | B13: 杨达婷 | C13: 雷山县第二中学 | D13: 22614061302 | E13: 180.00 | F13: 60.00 | G13: 87.72 | H13: 30.00 | I13: 43.86 | J13: 73.86 | K13: 1 | L13: 是
A14: 12 | B14: 潘洪俞 | C14: 雷山县第二中学 | D14: 22614061302 | E14: 174.50 | F14: 58.17 | G14: 88.90 | H14: 29.09 | I14: 44.45 | J14: 73.54 | K14: 2
A15: 13 | B15: 王乃龙 | C15: 雷山县第二中学 | D15: 22614061302 | E15: 176.00 | F15: 58.67 | G15: 76.90 | H15: 29.34 | I15: 38.45 | J15: 67.79 | K15: 3
A16: 14 | B16: 文科艳 | C16: 雷山县思源实验学校 | D16: 22614061401 | E16: 177.00 | F16: 59.00 | G16: 86.20 | H16: 29.50 | I16: 43.10 | J16: 72.60 | K16: 1 | L16: 是
A17: 15 | B17: 危荣冬 | C17: 雷山县思源实验学校 | D17: 22614061401 | E17: 169.00 | F17: 56.33 | G17: 86.50 | H17: 28.17 | I17: 43.25 | J17: 71.42 | K17: 2
A18: 16 | B18: 邓文榜 | C18: 雷山县思源实验学校 | D18: 22614061401 | E18: 168.00 | F18: 56.00 | G18: 79.40 | H18: 28.00 | I18: 39.70 | J18: 67.70 | K18: 3
A19: 17 | B19: 王光平 | C19: 贵州省雷山民族中学 | D19: 22614061501 | E19: 168.00 | F19: 56.00 | G19: 87.00 | H19: 28.00 | I19: 43.50 | J19: 71.50 | K19: 1 | L19: 是
A20: 18 | B20: 夏贵雪 | C20: 贵州省雷山民族中学 | D20: 22614061501 | E20: 173.00 | F20: 57.67 | G20: 80.20 | H20: 28.84 | I20: 40.10 | J20: 68.94 | K20: 2 | L20: 是
A21: 19 | B21: 潘保光 | C21: 贵州省雷山民族中学 | D21: 22614061501 | E21: 147.50 | F21: 49.17 | G21: 85.60 | H21: 24.59 | I21: 42.80 | J21: 67.39 | K21: 3
A22: 20 | B22: 金明显 | C22: 贵州省雷山民族中学 | D22: 22614061501 | E22: 137.00 | F22: 45.67 | G22: 74.80 | H22: 22.84 | I22: 37.40 | J22: 60.24 | K22: 4
A23: 21 | B23: 张信科 | C23: 贵州省雷山民族中学 | D23: 22614061501 | E23: 144.50 | F23: 48.17 | G23: 缺考 | H23: 24.09 | I23: 0.00 | J23: 24.09 | K23: 5
A24: 22 | B24: 肖雪梅 | C24: 贵州省雷山民族中学 | D24: 22614061502 | E24: 181.00 | F24: 60.33 | G24: 84.20 | H24: 30.17 | I24: =IFERROR(ROUND(G24*50%,2),0) -> 42.10 | J24: 72.27 | K24: 1 | L24: 是
A25: 23 | B25: 冉诗婉 | C25: 贵州省雷山民族中学 | D25: 22614061502 | E25: 173.50 | F25: 57.83 | G25: 85.60 | H25: 28.92 | I25: 42.80 | J25: 71.72 | K25: 2 | L25: 是
A26: 24 | B26: 张宽婧 | C26: 贵州省雷山民族中学 | D26: 22614061502 | E26: 167.50 | F26: 55.83 | G26: 81.20 | H26: 27.92 | I26: 40.60 | J26: 68.52 | K26: 3
A27: 25 | B27: 林星辰 | C27: 贵州省雷山民族中学 | D27: 22614061502 | E27: 168.00 | F27: 56.00 | G27: 77.40 | H27: 28.00 | I27: 38.70 | J27: 66.70 | K27: 4
A28: 26 | B28: 范勤 | C28: 贵州省雷山民族中学 | D28: 22614061502 | E28: 179.50 | F28: 59.83 | G28: 72.80 | H28: 29.92 | I28: 36.40 | J28: 66.32 | K28: 5
A29: 27 | B29: 熊红梅 | C29: 贵州省雷山民族中学 | D29: 22614061502 | E29: 165.50 | F29: 55.17 | G29: 77.40 | H29: 27.59 | I29: 38.70 | J29: 66.29 | K29: 6
A30: 28 | B30: 黎兵杰 | C30: 贵州省雷山民族中学 | D30: 22614061503 | E30: 203.50 | F30: 67.83 | G30: 90.76 | H30: 33.92 | I30: 45.38 | J30: 79.30 | K30: 1 | L30: 是
A31: 29 | B31: 杨东妹 | C31: 贵州省雷山民族中学 | D31: 22614061503 | E31: 185.00 | F31: 61.67 | G31: 89.20 | H31: 30.84 | I31: 44.60 | J31: 75.44 | K31: 2
A32: 30 | B32: 游名丹 | C32: 贵州省雷山民族中学 | D32: 22614061503 | E32: 175.50 | F32: 58.50 | G32: 90.70 | H32: 29.25 | I32: 45.35 | J32: 74.60 | K32: 3
A33: 31 | B33: 潘金宝 | C33: 雷山县中等职业学校 | D33: 22614061601 | E33: 179.00 | F33: 59.67 | G33: 88.10 | H33: 29.84 | I33: 44.05 | J33: 73.89 | K33: 1 | L33: 是
A34: 32 | B34: 杨武骐 | C34: 雷山县中等职业学校 | D34: 22614061601 | E34: 169.50 | F34: 56.50 | G34: 87.40 | H34: 28.25 | I34: 43.70 | J34: 71.95 | K34: 2
A35: 33 | B35: 周伟 | C35: 雷山县中等职业学校 | D35: 22614061601 | E35: 164.50 | F35: 54.83 | G35: 79.00 | H35: 27.42 | I35: 39.50 | J35: 66.92 | K35: 3
A36: 34 | B36: 陈艳丽 | C36: 雷山县中等职业学校 | D36: 22614061602 | E36: 194.50 | F36: 64.83 | G36: 81.60 | H36: 32.42 | I36: 40.80 | J36: 73.22 | K36: 1 | L36: 是
A37: 35 | B37: 卯艳婷 | C37: 雷山县中等职业学校 | D37: 22614061602 | E37: 177.50 | F37: 59.17 | G37: 80.40 | H37: 29.59 | I37: 40.20 | J37: 69.79 | K37: 2
A38: 36 | B38: 余正芳 | C38: 雷山县中等职业学校 | D38: 22614061603 | E38: 176.00 | F38: 58.67 | G38: 86.80 | H38: 29.34 | I38: 43.40 | J38: 72.74 | K38: 1 | L38: 是
A39: 37 | B39: 李黄书 | C39: 雷山县中等职业学校 | D39: 22614061603 | E39: 178.00 | F39: 59.33 | G39: 78.00 | H39: 29.67 | I39: 39.00 | J39: 68.67 | K39: 2
A40: 38 | B40: 潘晓芳 | C40: 雷山县乌江学校 | D40: 22614061701 | E40: 160.50 | F40: 53.50 | G40: 80.40 | H40: 26.75 | I40: 40.20 | J40: 66.95 | K40: 1 | L40: 是
A41: 39 | B41: 李世丽 | C41: 雷山县乌江学校 | D41: 22614061701 | E41: 147.50 | F41: 49.17 | G41: 78.40 | H41: 24.59 | I41: 39.20 | J41: 63.79 | K41: 2
A42: 40 | B42: 梁枝梅 | C42: 雷山县乌江学校 | D42: 22614061701 | E42: 147.00 | F42: 49.00 | G42: 77.80 | H42: 24.50 | I42: 38.90 | J42: 63.40 | K42: 3
A43: 41 | B43: 蒋佳丽 | C43: 雷山县达地水族乡卫生院 | D43: 22614061801 | E43: 163.30 | F43: 54.43 | G43: 74.80 | H43: 27.22 | I43: 37.40 | J43: 64.62 | K43: 1 | L43: 是
A44: 42 | B44: 余海云 | C44: 雷山县达地水族乡卫生院 | D44: 22614061801 | E44: 150.00 | F44: 50.00 | G44: 74.20 | H44: 25.00 | I44: 37.10 | J44: 62.10 | K44: 2
A45: 43 | B45: 龙星雨 | C45: 雷山县达地水族乡卫生院 | D45: 22614061801 | E45: 148.10 | F45: 49.37 | G45: 73.80 | H45: 24.69 | I45: 36.90 | J45: 61.59 | K45: 3
A46: 44 | B46: 胡吕 | C46: 雷山县达地水族乡卫生院 | D46: 22614061802 | E46: 170.50 | F46: 56.83 | G46: 80.20 | H46: 28.42 | I46: 40.10 | J46: 68.52 | K46: 1 | L46: 是
A47: 45 | B47: 李守琴 | C47: 雷山县达地水族乡卫生院 | D47: 22614061802 | E47: 155.00 | F47: 51.67 | G47: 73.80 | H47: 25.84 | I47: 36.90 | J47: 62.74 | K47: 2
A48: 46 | B48: 严再幸 | C48: 雷山县达地水族乡卫生院 | D48: 22614061802 | E48: 153.00 | F48: 51.00 | G48: 71.80 | H48: 25.50 | I48: 35.90 | J48: 61.40 | K48: 3
A49: 47 | B49: 白妍 | C49: 雷山县永乐镇卫生院 | D49: 22614061901 | E49: 167.70 | F49: 55.90 | G49: 78.40 | H49: 27.95 | I49: 39.20 | J49: 67.15 | K49: 1 | L49: 是
A50: 48 | B50: 李艳阳 | C50: 雷山县永乐镇卫生院 | D50: 22614061901 | E50: 166.40 | F50: 55.47 | G50: 73.60 | H50: 27.74 | I50: 36.80 | J50: 64.54 | K50: 2
A51: 49 | B51: 文志慧 | C51: 雷山县永乐镇卫生院 | D51: 22614061901 | E51: 155.70 | F51: 51.90 | G51: 76.80 | H51: 25.95 | I51: 38.40 | J51: 64.35 | K51: 3
A52: 50 | B52: 袁雪 | C52: 雷山县西江镇卫生院 | D52: 22614062001 | E52: 180.40 | F52: 60.13 | G52: 77.40 | H52: 30.07 | I52: 38.70 | J52: 68.77 | K52: 1 | L52: 是
A53: 51 | B53: 余海莉 | C53: 雷山县西江镇卫生院 | D53: 22614062001 | E53: 172.00 | F53: 57.33 | G53: 79.60 | H53: 28.67 | I53: 39.80 | J53: 68.47 | K53: 2
A54: 52 | B54: 李月月 | C54: 雷山县西江镇卫生院 | D54: 22614062001 | E54: 158.40 | F54: 52.80 | G54: 78.10 | H54: 26.40 | I54: 39.05 | J54: 65.45 | K54: 3
A55: 53 | B55: 杨林轩 | C55: 雷山县丹江镇综合治理服务中心 | D55: 22614062101 | E55: 211.00 | F55: 70.33 | G55: 82.60 | H55: 35.17 | I55: 41.30 | J55: 76.47 | K55: 1 | L55: 是
A56: 54 | B56: 何立驹 | C56: 雷山县丹江镇综合治理服务中心 | D56: 22614062101 | E56: 197.00 | F56: 65.67 | G56: 76.40 | H56: 32.84 | I56: 38.20 | J56: 71.04 | K56: 2
A57: 55 | B57: 鲍江花 | C57: 雷山县丹江镇综合治理服务中心 | D57: 22614062101 | E57: 183.50 | F57: 61.17 | G57: 73.40 | H57: 30.59 | I57: 36.70 | J57: 67.29 | K57: 3
A58: 56 | B58: 姜驿 | C58: 雷山县丹江镇社会事务服务中心 | D58: 22614062201 | E58: 189.50 | F58: 63.17 | G58: 81.80 | H58: 31.59 | I58: 40.90 | J58: 72.49 | K58: 1 | L58: 是
A59: 57 | B59: 陈圣 | C59: 雷山县丹江镇社会事务服务中心 | D59: 22614062201 | E59: 190.00 | F59: 63.33 | G59: 79.20 | H59: 31.67 | I59: 39.60 | J59: 71.27 | K59: 2
A60: 58 | B60: 周章桦 | C60: 雷山县丹江镇社会事务服务中心 | D60: 22614062201 | E60: 184.00 | F60: 61.33 | G60: 78.80 | H60: 30.67 | I60: 39.40 | J60: 70.07 | K60: 3
A61: 59 | B61: 王正文 | C61: 雷山县达地水族乡人民政府综合治理服务中心 | D61: 22614062301 | E61: 168.00 | F61: 56.00 | G61: 83.80 | H61: 28.00 | I61: 41.90 | J61: 69.90 | K61: 1 | L61: 是
A62: 60 | B62: 王洪坤 | C62: 雷山县达地水族乡人民政府综合治理服务中心 | D62: 22614062301 | E62: 135.00 | F62: 45.00 | G62: 77.20 | H62: 22.50 | I62: 38.60 | J62: 61.10 | K62: 2
A63: 61 | B63: 宋启芳 | C63: 雷山县达地水族乡人民政府综合治理服务中心 | D63: 22614062301 | E63: 134.50 | F63: 44.83 | G63: 缺考 | H63: 22.42 | I63: 0.00 | J63: 22.42 | K63: 3
A64: 62 | B64: 杨小秋 | C64: 雷山县方祥乡农业农村综合服务中心 | D64: 22614062401 | E64: 191.00 | F64: 63.67 | G64: 75.00 | H64: 31.84 | I64: 37.50 | J64: 69.34 | K64: 1 | L64: 是
A65: 63 | B65: 李思洁 | C65: 雷山县方祥乡农业农村综合服务中心 | D65: 22614062401 | E65: 177.50 | F65: 59.17 | G65: 78.20 | H65: 29.59 | I65: 39.10 | J65: 68.69 | K65: 2
A66: 64 | B66: 陈海芳 | C66: 雷山县方祥乡农业农村综合服务中心 | D66: 22614062401 | E66: 168.00 | F66: 56.00 | G66: 79.00 | H66: 28.00 | I66: 39.50 | J66: 67.50 | K66: 3
A67: 65 | B67: 毛正丽 | C67: 雷山县龙头街道党务政务综合服务中心（退役军人服务站） | D67: 22614062501 | E67: 181.00 | F67: 60.33 | G67: 78.56 | H67: =ROUND(F67*50%,2) -> 30.17 | I67: 39.28 | J67: =H67+I67 -> 69.45 | K67: 1 | L67: 是
A68: 66 | B68: 罗小菊 | C68: 雷山县龙头街道党务政务综合服务中心（退役军人服务站） | D68: 22614062501 | E68: 179.50 | F68: 59.83 | G68: 78.70 | H68: =ROUND(F68*50%,2) -> 29.92 | I68: 39.35 | J68: =H68+I68 -> 69.27 | K68: 2
A69: 67 | B69: 王国金 | C69: 雷山县龙头街道党务政务综合服务中心（退役军人服务站） | D69: 22614062501 | E69: 178.00 | F69: 59.33 | G69: 78.36 | H69: =ROUND(F69*50%,2) -> 29.67 | I69: 39.18 | J69: =H69+I69 -> 68.85 | K69: 3
